bitfinex/quotes_SOLUSD_20240613
["timestamp","ask_amount","ask_price","bid_price","bid_amount"]
[1718317662705,0.8388806,147.7,147.65,0.51]
[1718317662904,0.8388806,147.7,147.67,7.76]
[1718317665912,0.8388806,147.7,147.68,7.76]
[1718317667618,0.8388806,147.7,147.69,7.76]
[1718317680835,0.8388806,147.7,147.64,26.3278]
[1718317681172,0.8388806,147.7,147.66,7.76]
[1718317681341,0.8388806,147.7,147.64,20.0]
[1718317681659,0.8388806,147.7,147.65,27.76]
[1718317681827,0.8388806,147.7,147.66,7.76]
[1718317682641,7.76,147.68,147.6,6.3896]
[1718317682840,7.76,147.68,147.63,7.76]
[1718317683230,7.76,147.68,147.62,7.76]
[1718317684872,7.76,147.65,147.59,7.76]
[1718317685166,7.76,147.65,147.6,7.76]
[1718317685527,0.17,147.68,147.61,7.76]
[1718317685726,7.76,147.66,147.61,7.76]
[1718317685921,15.8411,147.69,147.61,7.76]
[1718317686126,15.8411,147.69,147.63,7.76]
[1718317686342,15.8411,147.69,147.64,7.76]
[1718317686856,23.6011,147.69,147.63,7.76]
[1718317687222,15.8411,147.69,147.62,7.76]
[1718317687563,7.76,147.67,147.62,7.76]
[1718317688071,7.76,147.66,147.6,7.76]
[1718317688435,0.17,147.68,147.6,7.76]
[1718317688858,7.76,147.66,147.6,7.76]
[1718317689356,15.8411,147.69,147.61,7.76]
[1718317689556,15.8411,147.69,147.58,16.1495]
[1718317689767,15.8411,147.69,147.61,7.76]
[1718317694344,7.76,147.68,147.62,7.76]
[1718317694549,7.76,147.67,147.62,7.76]
[1718317697061,15.8411,147.69,147.62,7.76]
[1718317697353,7.76,147.67,147.62,7.76]
[1718317699237,7.76,147.67,147.61,7.76]
[1718317699556,7.76,147.66,147.61,7.76]
[1718317700253,7.76,147.67,147.61,7.76]
[1718317700560,7.76,147.67,147.62,7.76]
[1718317702751,15.8411,147.69,147.62,7.76]
[1718317703745,23.6011,147.69,147.63,7.76]
[1718317705666,15.8411,147.69,147.64,7.76]
[1718317705840,0.8388806,147.7,147.65,7.76]
[1718317706170,0.8388806,147.7,147.66,7.76]
[1718317707856,0.8388806,147.7,147.65,7.76]
[1718317710283,0.8388806,147.7,147.66,7.76]
[1718317714182,0.8388806,147.7,147.65,7.76]
[1718317714353,8.5988806,147.7,147.64,7.76]
[1718317714686,7.76,147.69,147.63,7.76]
[1718317714974,7.76,147.69,147.64,7.76]
[1718317715675,7.76,147.69,147.61,0.34]
[1718317715882,7.76,147.68,147.62,0.17]
[1718317716180,7.76,147.66,147.61,7.76]
[1718317716382,7.76,147.66,147.6,7.76]
[1718317716972,7.76,147.66,147.61,7.76]
[1718317719490,16.2733,147.68,147.61,7.76]
[1718317720071,16.2733,147.68,147.58,16.1495]
[1718317720258,16.2733,147.68,147.61,7.76]
[1718317720775,16.2733,147.68,147.62,7.76]
[1718317721758,16.2733,147.68,147.63,7.76]
[1718317721759,24.0333,147.68,147.63,7.76]
[1718317723378,16.2733,147.68,147.64,7.76]
[1718317723585,0.8388806,147.7,147.65,7.76]
[1718317723964,8.5988806,147.7,147.65,7.76]
[1718317725989,8.5988806,147.7,147.64,7.76]
[1718317726285,7.76,147.69,147.63,7.76]
[1718317726488,7.76,147.68,147.63,7.76]
[1718317728474,7.76,147.68,147.6,0.17]
[1718317728671,7.76,147.68,147.6,0.34]
[1718317728888,7.76,147.68,147.63,7.76]
[1718317730168,7.76,147.69,147.64,7.76]
[1718317732304,0.8388806,147.7,147.65,7.76]
[1718317732592,8.5988806,147.7,147.65,7.76]
[1718317732777,8.5988806,147.7,147.63,0.17]
[1718317732977,8.5988806,147.7,147.65,7.76]
[1718317733192,8.5988806,147.7,147.64,7.76]
[1718317735892,8.5988806,147.7,147.65,7.76]
[1718317737197,8.5988806,147.7,147.63,0.17]
[1718317737490,8.5988806,147.7,147.65,7.76]
[1718317737693,7.76,147.69,147.63,0.17]
[1718317737902,8.5988806,147.7,147.64,7.76]
[1718317739299,8.5988806,147.7,147.63,0.17]
[1718317739772,8.5988806,147.7,147.64,7.76]
[1718317740169,8.5988806,147.7,147.63,0.17]
[1718317740386,8.5988806,147.7,147.64,7.76]
[1718317741085,8.5988806,147.7,147.63,0.17]
[1718317741407,8.5988806,147.7,147.64,7.76]
[1718317742299,8.5988806,147.7,147.65,7.76]
[1718317742484,0.8388806,147.7,147.65,7.76]
[1718317742677,8.5988806,147.7,147.65,7.76]
[1718317745000,0.8388806,147.7,147.65,7.76]
[1718317745498,0.8388806,147.7,147.66,7.76]
[1718317745881,0.8388806,147.7,147.63,0.34]
[1718317746208,0.8388806,147.7,147.66,7.76]
[1718317749994,0.8388806,147.7,147.69,7.76]
[1718317752808,0.8388806,147.7,147.69,7.93]
[1718317753210,0.8388806,147.7,147.69,7.76]
[1718317753397,0.8388806,147.7,147.65,0.17]
[1718317753599,0.8388806,147.7,147.67,7.76]
[1718317753909,0.8388806,147.7,147.64,20.0]
[1718317754097,0.8388806,147.7,147.66,7.76]
[1718317754296,0.8388806,147.7,147.67,7.76]
[1718317754601,0.8388806,147.7,147.68,7.76]
[1718317755781,0.8388806,147.7,147.67,7.76]
[1718317756309,0.8388806,147.7,147.66,7.76]
[1718317757027,0.8388806,147.7,147.65,0.34]
[1718317757028,0.8388806,147.7,147.65,0.17]
[1718317757205,0.8388806,147.7,147.64,7.76]
[1718317757404,7.76,147.69,147.64,7.76]
[1718317758512,8.5988806,147.7,147.65,7.76]
[1718317758719,0.8388806,147.7,147.65,7.76]
[1718317758932,8.5988806,147.7,147.65,7.76]
[1718317759326,0.8388806,147.7,147.65,7.76]
[1718317759932,0.8388806,147.7,147.66,7.76]
[1718317760098,0.8388806,147.7,147.64,0.17]
[1718317760099,0.8388806,147.7,147.67,7.76]
[1718317761715,0.8388806,147.7,147.68,7.76]
[1718317762230,0.8388806,147.7,147.69,7.76]
[1718317767629,0.8388806,147.7,147.69,7.93]
[1718317767992,0.8388806,147.7,147.69,0.17]
[1718317768222,0.8388806,147.7,147.69,7.76]
[1718317768406,0.8388806,147.7,147.68,7.76]
[1718317769324,0.8388806,147.7,147.67,0.51]
[1718317769523,0.8388806,147.7,147.67,7.93]
[1718317770224,0.8388806,147.7,147.68,7.76]
[1718317771403,0.8388806,147.7,147.67,0.17]
[1718317771722,0.8388806,147.7,147.68,7.76]
[1718317772234,0.8388806,147.7,147.67,0.17]
[1718317772411,0.8388806,147.7,147.68,7.76]
[1718317773428,0.8388806,147.7,147.66,0.51]
[1718317773622,0.8388806,147.7,147.68,7.76]
[1718317776332,0.8388806,147.7,147.67,7.76]
[1718317776520,0.8388806,147.7,147.63,37.3346]
[1718317776521,0.8388806,147.7,147.6,15.1091]
[1718317776716,8.5988806,147.7,147.65,7.76]
[1718317777109,0.8388806,147.7,147.66,7.76]
[1718317777336,0.8388806,147.7,147.67,7.76]
[1718317778427,0.8388806,147.7,147.68,7.76]
[1718317780748,0.8388806,147.7,147.67,7.76]
[1718317786667,0.8388806,147.7,147.68,7.76]
[1718317794782,0.8388806,147.7,147.64,0.17]
[1718317795070,0.8388806,147.7,147.69,7.76]
[1718317798560,0.8388806,147.7,147.69,0.34]
[1718317798806,0.8388806,147.7,147.69,8.44]
[1718317798957,7.76,147.79,147.7,0.17]
[1718317799158,7.76,147.77,147.7,0.34]
[1718317799384,7.76,147.76,147.7,7.76]
[1718317799562,7.76,147.75,147.7,7.76]
[1718317799760,7.76,147.75,147.69,0.17]
[1718317799964,7.76,147.73,147.66,20.0]
[1718317800166,7.76,147.72,147.67,7.76]
[1718317800377,7.76,147.7,147.61,15.8437]
[1718317800567,7.76,147.7,147.64,7.76]
[1718317800783,7.76,147.7,147.61,15.8437]
[1718317800954,7.76,147.7,147.64,7.76]
[1718317801156,100.17,147.73,147.61,15.8437]
[1718317801157,7.76,147.69,147.61,15.8437]
[1718317801961,7.76,147.69,147.63,7.76]
[1718317802279,7.76,147.69,147.61,15.8437]
[1718317802280,7.76,147.69,147.64,7.76]
[1718317802462,7.76,147.7,147.65,7.76]
[1718317803106,7.76,147.69,147.64,7.76]
[1718317804406,7.76,147.69,147.6,6.3712]
[1718317804597,7.76,147.68,147.63,7.76]
[1718317804902,15.1901,147.69,147.65,7.76]
[1718317805067,15.5654,147.73,147.66,7.76]
[1718317805269,7.76,147.72,147.64,0.51]
[1718317805573,23.3254,147.73,147.64,0.51]
[1718317806900,15.5654,147.73,147.64,0.51]
[1718317807207,23.3254,147.73,147.68,7.76]
[1718317807709,23.3254,147.73,147.67,7.76]
[1718317807883,23.3254,147.73,147.64,0.51]
[1718317808197,23.3254,147.73,147.67,7.76]
[1718317808605,15.5654,147.73,147.68,7.76]
[1718317808800,23.3254,147.73,147.68,7.76]
[1718317810399,15.5654,147.73,147.68,7.76]
[1718317810987,23.3254,147.73,147.68,7.76]
[1718317811503,23.3254,147.73,147.64,0.51]
[1718317811694,23.3254,147.73,147.67,7.76]
[1718317812202,7.76,147.72,147.67,7.76]
[1718317812609,15.5654,147.73,147.69,7.76]
[1718317812823,15.5654,147.73,147.67,7.76]
[1718317815417,15.5654,147.73,147.68,7.76]
[1718317815584,15.5654,147.73,147.69,7.76]
[1718317817715,15.5654,147.73,147.68,7.76]
[1718317818088,269.0692,147.77,147.7,7.76]
[1718317818282,276.8292,147.77,147.71,7.76]
[1718317818489,276.8292,147.77,147.72,7.76]
[1718317818717,23.7292,147.77,147.72,7.76]
[1718317819385,23.7292,147.77,147.71,7.76]
[1718317819988,23.7292,147.77,147.69,0.17]
[1718317820311,23.7292,147.77,147.71,7.76]
[1718317820518,15.9692,147.77,147.68,0.34]
[1718317820810,23.7292,147.77,147.71,7.76]
[1718317822114,23.7292,147.77,147.69,0.34]
[1718317822115,23.7292,147.77,147.72,7.76]
[1718317822613,23.7292,147.77,147.69,0.34]
[1718317822918,7.76,147.76,147.71,7.76]
[1718317823494,23.7292,147.77,147.71,7.76]
[1718317823694,15.9692,147.77,147.71,7.76]
[1718317823997,23.7292,147.77,147.71,7.76]
[1718317824187,23.7292,147.77,147.72,7.76]
[1718317824390,15.9692,147.77,147.74,7.76]
[1718317824585,15.9692,147.77,147.75,7.76]
[1718317824909,15.9692,147.77,147.71,0.17]
[1718317825210,15.9692,147.77,147.71,20.68]
[1718317828013,21.5634,147.83,147.76,7.76]
[1718317828316,29.3234,147.83,147.77,7.76]
[1718317828524,29.3234,147.83,147.78,7.76]
[1718317829507,21.5634,147.83,147.78,7.76]
[1718317829719,29.3234,147.83,147.78,7.76]
[1718317830505,15.4321,147.83,147.74,15.2133]
[1718317830810,0.8388806,147.84,147.82,7.76]
[1718317831612,0.8388806,147.84,147.77,31.04]
[1718317831918,0.8388806,147.84,147.78,0.17]
[1718317833716,0.8388806,147.84,147.78,0.51]
[1718317834112,0.8388806,147.84,147.79,0.17]
[1718317834315,0.8388806,147.84,147.79,0.51]
[1718317834633,0.8388806,147.84,147.8,0.17]
[1718317837233,0.8388806,147.84,147.8,1.52282948]
[1718317837437,0.8388806,147.84,147.83,7.76]
[1718317838206,0.8388806,147.84,147.8,0.17]
[1718317838407,0.8388806,147.84,147.81,7.76]
[1718317838631,0.8388806,147.84,147.79,0.34]
[1718317838632,0.8388806,147.84,147.82,7.76]
[1718317840119,0.8388806,147.84,147.83,7.76]
[1718317841226,0.8388806,147.84,147.83,8.27]
[1718317843209,0.8388806,147.84,147.83,8.44]
[1718317843625,0.8388806,147.84,147.83,16.2]
[1718317844222,0.8388806,147.84,147.83,8.44]
[1718317846140,0.8388806,147.84,147.83,28.44]
[1718317846336,0.8388806,147.84,147.83,36.2]
[1718317846936,0.8388806,147.84,147.83,28.44]
[1718317847357,0.8388806,147.84,147.83,34.9731]
[1718317847524,122.6473,147.98,147.84,0.17]
[1718317847723,7.76,147.96,147.9,7.76]
[1718317847949,22.6473,147.98,147.91,7.76]
[1718317848547,7.76,147.96,147.91,7.76]
[1718317848745,22.6473,147.98,147.91,7.76]
[1718317849053,7.76,147.96,147.91,7.76]
[1718317851554,7.76,147.97,147.91,7.76]
[1718317852055,22.6473,147.98,147.91,7.76]
[1718317852456,7.76,147.97,147.91,7.76]
[1718317853168,7.76,147.97,147.84,52.05]
[1718317853169,7.76,147.95,147.84,31.72]
[1718317853353,122.6473,147.98,147.84,31.72]
[1718317853354,122.6473,147.98,147.9,7.76]
[1718317853563,7.76,147.95,147.9,7.76]
[1718317853940,7.76,147.95,147.89,7.76]
[1718317854336,122.6473,147.98,147.9,7.76]
[1718317854533,7.76,147.93,147.83,22.0949]
[1718317854738,7.76,147.91,147.83,22.0949]
[1718317854966,7.76,147.91,147.85,7.76]
[1718317855169,7.76,147.91,147.83,22.0949]
[1718317855170,7.76,147.91,147.86,7.76]
[1718317857042,7.76,147.91,147.85,7.76]
[1718317857248,7.76,147.9,147.85,7.76]
[1718317857444,16.6317,147.93,147.8,15.5812]
[1718317857445,7.76,147.89,147.8,15.5812]
[1718317857681,7.76,147.89,147.83,7.76]
[1718317858695,7.76,147.89,147.84,7.76]
[1718317859568,7.76,147.9,147.85,7.76]
[1718317860096,6.0833,147.92,147.86,7.76]
[1718317860399,13.8433,147.92,147.86,7.76]
[1718317861006,13.8433,147.92,147.87,7.76]
[1718317863892,7.76,147.89,147.8,15.5812]
[1718317864093,7.76,147.89,147.84,7.76]
[1718317864298,0.17,147.89,147.79,6.0984]
[1718317864490,0.17,147.89,147.79,7.76]
[1718317864491,7.76,147.84,147.79,7.76]
[1718317865516,7.76,147.82,147.76,15.5531]
[1718317865671,7.76,147.82,147.77,7.76]
[1718317865985,7.76,147.82,147.75,6.5429]
[1718317866188,7.76,147.82,147.77,7.76]
[1718317866410,6.3923,147.86,147.75,6.5429]
[1718317866591,7.76,147.84,147.79,7.76]
[1718317866792,6.3923,147.86,147.79,7.76]
[1718317866997,7.76,147.84,147.79,7.76]
[1718317871499,7.76,147.85,147.8,7.76]
[1718317871695,15.8623,147.87,147.78,0.17]
[1718317871898,15.8623,147.87,147.83,7.76]
[1718317873308,7.76,147.89,147.83,7.76]
[1718317873503,23.2158,147.89,147.83,7.76]
[1718317874699,7.76,147.88,147.83,7.76]
[1718317880112,7.76,147.88,147.76,20.33]
[1718317880113,7.76,147.84,147.75,22.9534]
[1718317880323,0.17,147.88,147.78,7.76]
[1718317880495,7.76,147.86,147.77,7.76]
[1718317880808,7.76,147.86,147.81,7.76]
[1718317883217,15.4558,147.89,147.81,7.76]
[1718317883218,7.76,147.87,147.81,7.76]
[1718317884110,15.4558,147.89,147.84,7.76]
[1718317884612,15.4558,147.89,147.85,7.76]
[1718317884787,15.4558,147.89,147.84,7.76]
[1718317885205,15.4558,147.89,147.83,7.76]
[1718317885406,7.76,147.88,147.82,7.76]
[1718317886198,7.76,147.88,147.83,7.76]
[1718317886400,15.4558,147.89,147.84,7.76]
[1718317886401,23.2158,147.89,147.84,7.76]
[1718317890707,15.4558,147.89,147.8,21.3751]
[1718317890910,7.76,147.87,147.82,7.76]
[1718317891111,15.4558,147.89,147.81,7.76]
[1718317891112,7.76,147.86,147.81,7.76]
[1718317891807,7.76,147.82,147.77,7.76]
[1718317892704,0.17,147.87,147.78,7.76]
[1718317892926,7.76,147.84,147.79,7.76]
[1718317893330,7.76,147.85,147.79,7.76]
[1718317894124,7.76,147.85,147.74,0.17]
[1718317894308,7.76,147.84,147.79,7.76]
[1718317895128,7.76,147.84,147.74,0.68]
[1718317895129,15.4558,147.89,147.8,7.76]
[1718317895307,7.76,147.87,147.81,7.76]
[1718317896321,15.4558,147.89,147.81,7.76]
[1718317896514,7.76,147.87,147.81,7.76]
[1718317897221,7.76,147.86,147.79,0.17]
[1718317897423,7.76,147.86,147.8,7.76]
[1718317898601,7.76,147.83,147.74,6.3926]
[1718317898822,7.76,147.83,147.78,7.76]
[1718317899401,7.76,147.83,147.77,7.76]
[1718317900935,7.76,147.82,147.77,7.76]
[1718317901431,7.76,147.82,147.76,7.76]
[1718317901633,7.76,147.82,147.77,7.76]
[1718317901944,7.76,147.82,147.75,0.68]
[1718317902243,7.76,147.82,147.77,7.76]
[1718317903206,7.76,147.83,147.77,7.76]
[1718317903405,7.76,147.83,147.78,7.76]
[1718317903627,7.76,147.84,147.79,7.76]
[1718317904044,7.76,147.84,147.78,7.76]
[1718317904246,7.76,147.83,147.78,7.76]
[1718317904445,7.76,147.84,147.78,7.76]
[1718317905348,7.76,147.84,147.77,0.17]
[1718317905660,7.76,147.84,147.78,7.76]
[1718317908982,7.76,147.82,147.76,8.27]
[1718317911080,6.5958,147.84,147.69,22.8183]
[1718317911081,7.76,147.79,147.69,22.8183]
[1718317911269,7.76,147.79,147.73,7.76]
[1718317911587,7.76,147.78,147.73,7.76]
[1718317912057,7.76,147.79,147.73,7.76]
[1718317913160,16.0396,147.83,147.7,31.04]
[1718317913365,7.76,147.81,147.75,7.76]
[1718317913582,7.76,147.8,147.75,7.76]
[1718317914807,16.0396,147.83,147.75,7.76]
[1718317914956,7.76,147.8,147.75,7.76]
[1718317915499,7.76,147.8,147.72,0.17]
[1718317915654,7.76,147.8,147.75,7.76]
[1718317918199,7.76,147.81,147.75,7.76]
[1718317918496,7.76,147.81,147.76,7.76]
[1718317924674,16.0396,147.83,147.76,7.76]
[1718317924879,7.76,147.85,147.79,7.76]
[1718317925093,15.6886,147.87,147.8,7.76]
[1718317925606,7.76,147.86,147.8,7.76]
[1718317925789,7.76,147.85,147.8,7.76]
[1718317926881,15.6886,147.87,147.8,7.76]
[1718317927297,7.76,147.85,147.8,7.76]
[1718317927693,7.76,147.86,147.8,7.76]
[1718317929511,7.76,147.85,147.8,7.76]
[1718317929880,15.3479,147.9,147.81,7.76]
[1718317930081,7.76,147.87,147.79,15.7377]
[1718317930402,7.76,147.87,147.82,7.76]
[1718317930604,0.17,147.89,147.82,7.76]
[1718317930795,7.76,147.87,147.82,7.76]
[1718317930994,15.3479,147.9,147.83,7.76]
[1718317931194,15.3479,147.9,147.85,7.76]
[1718317931384,7.76,147.89,147.84,7.76]
[1718317933315,7.76,147.9,147.84,7.76]
[1718317934127,16.4554,147.93,147.85,7.76]
[1718317934431,7.76,147.91,147.85,7.76]
[1718317936117,7.76,147.91,147.86,7.76]
[1718317936522,7.76,147.91,147.83,0.17]
[1718317936523,7.76,147.92,147.87,7.76]
[1718317936718,6.5933,147.95,147.87,7.76]
[1718317937035,7.76,147.93,147.88,7.76]
[1718317937255,268.803,147.97,147.88,7.76]
[1718317937603,7.76,147.94,147.89,7.76]
[1718317938835,15.703,147.97,147.89,7.76]
[1718317939133,7.76,147.94,147.89,7.76]
[1718317940631,7.76,147.94,147.88,7.76]
[1718317940929,7.76,147.94,147.87,6.1921]
[1718317941120,7.76,147.94,147.88,7.76]
[1718317941319,7.76,147.93,147.88,7.76]
[1718317943522,15.703,147.97,147.88,7.76]
[1718317943725,7.76,147.94,147.88,7.76]
[1718317943921,15.703,147.97,147.89,7.76]
[1718317944132,7.76,147.96,147.91,7.76]
[1718317944515,7.76,147.95,147.89,15.0188]
[1718317944721,7.76,147.95,147.9,7.76]
[1718317945112,7.76,147.96,147.91,7.76]
[1718317945312,0.8388806,147.99,147.89,15.0188]
[1718317945650,0.8388806,147.99,147.92,7.76]
[1718317945651,7.76,147.97,147.92,7.76]
[1718317946126,7.76,147.97,147.91,7.76]
[1718317946507,7.76,147.96,147.91,7.76]
[1718317947727,7.76,147.95,147.89,15.0188]
[1718317947909,7.76,147.96,147.91,7.76]
[1718317948634,7.76,147.97,147.91,7.76]
[1718317953216,0.8388806,147.99,147.92,7.76]
[1718317953554,7.76,147.97,147.92,7.76]
[1718317954828,7.76,147.97,147.91,7.76]
[1718317956247,7.76,147.96,147.91,7.76]
[1718317956538,7.76,147.96,147.9,7.76]
[1718317957413,7.76,147.95,147.89,15.1888]
[1718317957620,6.4123,147.97,147.87,6.1921]
[1718317957821,7.76,147.92,147.86,7.76]
[1718317958122,7.76,147.91,147.86,7.76]
[1718317959244,15.0337,147.95,147.87,7.76]
[1718317959245,7.76,147.93,147.87,7.76]
[1718317959420,7.76,147.93,147.85,16.3142]
[1718317959749,7.76,147.93,147.88,7.76]
[1718317960130,7.76,147.94,147.89,7.76]
[1718317962620,7.76,147.93,147.88,7.76]
[1718317962943,7.76,147.91,147.86,7.76]
[1718317963253,7.76,147.92,147.87,7.76]
[1718317963437,7.76,147.93,147.86,0.51]
[1718317963749,15.5167,147.95,147.88,7.76]
[1718317963951,7.76,147.93,147.88,7.76]
[1718317964125,7.76,147.94,147.88,7.76]
[1718317964821,7.05995294,147.98,147.89,7.76]
[1718317965028,7.76,147.95,147.9,7.76]
[1718317966655,0.17,147.98,147.91,7.76]
[1718317966837,7.76,147.96,147.91,7.76]
[1718317967040,0.8388806,147.99,147.91,7.76]
[1718317967717,7.76,147.96,147.91,7.76]
[1718317968351,7.76,147.95,147.9,23.2491]
[1718317970524,7.76,147.96,147.91,7.76]
[1718317970724,0.8388806,147.99,147.92,7.76]
[1718317970948,7.76,147.97,147.92,7.76]
[1718317971652,7.76,147.98,147.93,7.76]
[1718317972629,0.8388806,147.99,147.93,7.76]
[1718317972630,8.5988806,147.99,147.93,7.76]
[1718317974249,8.5988806,147.99,147.94,7.76]
[1718317978660,0.8388806,147.99,147.94,7.76]
[1718317978956,8.5988806,147.99,147.94,7.76]
[1718317979552,0.8388806,147.99,147.94,7.76]
[1718317979741,0.8388806,147.99,147.95,7.76]
[1718317979963,0.8388806,147.99,147.94,7.76]
[1718317980344,0.8388806,147.99,147.93,6.1899]
[1718317980548,8.5988806,147.99,147.94,0.17]
[1718317980741,8.5988806,147.99,147.94,7.93]
[1718317981242,0.8388806,147.99,147.94,7.93]
[1718317981437,0.8388806,147.99,147.94,0.17]
[1718317981668,0.8388806,147.99,147.94,0.51]
[1718317981858,0.8388806,147.99,147.95,7.76]
[1718317982174,0.8388806,147.99,147.97,7.76]
[1718317983269,0.8388806,147.99,147.96,23.921]
[1718317983449,0.8388806,147.99,147.97,7.76]
[1718317984851,0.8388806,147.99,147.98,0.17]
[1718317985037,0.8388806,147.99,147.96,15.991]
[1718317985243,0.8388806,147.99,147.97,7.76]
[1718317985679,0.8388806,147.99,147.96,23.751]
[1718317985968,0.8388806,147.99,147.97,7.76]
[1718317989350,0.8388806,147.99,147.96,15.991]
[1718317989551,0.8388806,147.99,147.96,23.751]
[1718317990440,0.8388806,147.99,147.95,0.17]
[1718317990652,0.8388806,147.99,147.95,7.76]
[1718317991959,0.8388806,147.99,147.96,7.76]
[1718317993555,0.8388806,147.99,147.93,6.0199]
[1718317993764,0.8388806,147.99,147.95,7.76]
[1718317994177,0.8388806,147.99,147.93,6.0199]
[1718317994364,0.8388806,147.99,147.94,7.76]
[1718317994565,8.5988806,147.99,147.94,7.76]
[1718317995257,0.8388806,147.99,147.93,6.0199]
[1718317995456,8.5988806,147.99,147.94,7.76]
[1718317995660,0.8388806,147.99,147.93,13.7799]
[1718317995868,8.5988806,147.99,147.93,13.7799]
[1718317996652,0.8388806,147.99,147.93,13.7799]
[1718317996851,8.5988806,147.99,147.93,13.7799]
[1718317997673,8.5988806,147.99,147.94,7.76]
[1718317998882,8.5988806,147.99,147.93,7.76]
[1718317999282,7.76,147.98,147.92,7.76]
[1718317999673,7.76,147.98,147.88,0.17]
[1718317999865,7.76,147.98,147.87,21.3003]
[1718317999866,7.76,147.95,147.87,21.3003]
[1718318000196,7.76,147.93,147.88,7.76]
[1718318001007,7.76,147.93,147.87,21.3003]
[1718318001008,7.76,147.94,147.89,7.76]
[1718318004781,7.76,147.96,147.91,7.76]
[1718318004964,7.76,147.96,147.88,0.17]
[1718318005165,7.76,147.96,147.91,7.76]
[1718318006194,16.3463,147.97,147.91,7.76]
[1718318006370,7.76,147.96,147.91,7.76]
[1718318006574,16.3463,147.97,147.91,7.76]
[1718318006774,24.1063,147.97,147.91,7.76]
[1718318007369,24.1063,147.97,147.92,7.76]
[1718318007583,16.3463,147.97,147.92,7.76]
[1718318008084,16.3463,147.97,147.93,7.76]
[1718318008266,7.76,147.98,147.93,7.76]
[1718318008472,8.5988806,147.99,147.94,7.76]
[1718318008999,8.5988806,147.99,147.92,0.17]
[1718318009000,0.8388806,147.99,147.92,0.17]
[1718318009203,0.8388806,147.99,147.95,7.76]
[1718318010993,0.8388806,147.99,147.94,7.76]
[1718318013895,0.8388806,147.99,147.93,7.93]
[1718318014081,7.76,147.98,147.93,7.76]
[1718318014290,7.76,147.97,147.92,7.76]
[1718318014808,8.5988806,147.99,147.93,7.76]
[1718318015010,8.5988806,147.99,147.94,7.76]
[1718318015797,0.8388806,147.99,147.94,7.76]
[1718318016211,0.8388806,147.99,147.96,7.76]
[1718318017189,0.8388806,147.99,147.95,7.76]
[1718318017596,8.5988806,147.99,147.94,7.76]
[1718318018308,0.8388806,147.99,147.94,7.76]
[1718318019414,8.5988806,147.99,147.94,7.76]
[1718318021208,8.5988806,147.99,147.88,0.17]